Cogmind - Beta 14 @@@ ROGUE MODE // 2025.04.26 @ 12:49:01 Player: amhuman Result: Self-destructed Performance ------------- Evolutions (3) 1500 Regions Visited (8) 1600 Robots Destroyed (41) 205 Value Destroyed (1429) 1429 Prototype IDs (30) 600 Alien Tech Used (0) 0 Bonus (314) 314 TOTAL SCORE: 5648 Bonus ------- Follower Combat Kills 14 Aligned with FarCom 300 Cogmind --------- Core Integrity 48/700 Matter 143/300 Energy 278/325 System Corruption 17% Temperature Critical (542) Movement Treading (160) Location -7/Factory Parts ------- > --- POWER (1) -------- Antimatter Reactor > --- PROPULSION (5) --- Heavy Treads > --- UTILITY (5) ------ Experimental Sensor Array Improved Light Armor Plating Improved Medium Armor Plating > --- WEAPON (2) ------- Advanced Beam Rifle > --- INVENTORY (5) ---- Improved Deuterium Engine Advanced Beam Rifle AWS/Thermal Advanced Assault Cannon Peak State ------------ > --- POWER ------------ Antimatter Reactor > --- PROPULSION ------- Heavy Treads > --- UTILITY ---------- Experimental Sensor Array Damper Plating > --- WEAPON ----------- AWS/Thermal > --- INVENTORY -------- Improved Medium Armor Plating Precision Shock Rifle Field Laser Gatling Laser Gauss Rifle [Rating: 70] Favorites ----------- Power Hybrid Deuterium Engine Engine Hybrid Deuterium Engine Power Core Light Nuclear Core Reactor Antimatter Reactor Propulsion Light Treads Treads Light Treads Leg Aluminum Leg Wheel Armored Huge Wheel Flight Unit Improved VTOL Module Utility Hacking Suite Device Experimental Sensor Array Storage Huge Storage Unit Processor Improved Signal Interpreter Hackware Hacking Suite Protection Improved Medium Armor Plating Weapon Advanced Beam Cannon Energy Gun Field Laser Energy Cannon Advanced Beam Cannon Ballistic Gun Light Assault Rifle Ballistic Cannon Assault Cannon Impact Weapon Great Maul Build | -11 -10 -10 -10 -9 -8 -7 -7 -7 ------- Run | Yrd Mat Min Exi Min Mat Fac Was Fac Slots Evolved 6 | . . . . . 4 2 . . Power . | . . . . . . . . . Propulsion 3 | . . . . . 2 1 . . Utility 3 | . . . . . 2 1 . . Weapon . | . . . . . . . . . Parts Attached 86 | 6 10 4 . 1 12 26 13 14 Power 6 | 1 1 1 . . 1 . 2 . Engine 4 | 1 1 . . . 1 . 1 . Core 1 | . . 1 . . . . . . Reactor 1 | . . . . . . . 1 . Propulsion 20 | 2 1 . . . 2 9 3 3 Treads 14 | 2 1 . . . 2 4 3 2 Leg 1 | . . . . . . 1 . . Wheel 4 | . . . . . . 4 . . Hover . | . . . . . . . . . Flight 1 | . . . . . . . . 1 Utility 34 | 1 4 2 . 1 6 8 5 7 Device 12 | . 2 1 . . 2 2 3 2 Storage 6 | 1 1 . . . 3 1 . . Processor 2 | . 1 . . . . 1 . . Hackware 3 | . . . . . 1 2 . . Protection 11 | . . 1 . 1 . 2 2 5 Artifact . | . . . . . . . . . Weapon 26 | 2 4 1 . . 3 9 3 4 Energy Gun 11 | 1 . . . . 3 2 1 4 Energy Cannon 6 | . 3 . . . . 2 1 . Ballistic Gun 2 | 1 . . . . . 1 . . Ballistic Cannon 4 | . 1 1 . . . 2 . . Launcher . | . . . . . . . . . Special Weapon . | . . . . . . . . . Impact Weapon 3 | . . . . . . 2 1 . Slashing Weapon . | . . . . . . . . . Piercing Weapon . | . . . . . . . . . Special Melee Weapon . | . . . . . . . . . Unidentified Prototypes 6 | . 1 . . . 1 2 . 2 Parts Lost 24 | . 2 2 . . 1 1 11 7 Power 3 | . 1 1 . . . . 1 . Propulsion 9 | . . . . . 1 1 4 3 Utility 9 | . 1 . . . . . 5 3 Weapon 3 | . . 1 . . . . 1 1 Highest Loss Streak 7 | . 2 2 . . 1 1 3 7 To Critical Strikes . | . . . . . . . . . Average Slot Usage (%) 86 | . 97 87 100 100 77 89 57 66 Engine 5 | . 14 . . . 3 7 4 . Core 3 | . . 12 14 14 5 . . . Treads 22 | . 27 28 28 28 22 19 16 13 Leg 1 | . . . . . . 3 . . Wheel 2 | . . . . . . 5 . . Device 10 | . 8 5 14 1 8 12 11 14 Storage 8 | . 14 14 14 14 9 7 4 . Processor 1 | . 4 2 . . . 2 2 . Hackware 3 | . . . . . 6 9 3 . Protection 5 | . . 5 . 12 8 3 2 18 Energy Gun 6 | . 3 . . . 11 10 1 8 Energy Cannon 4 | . 9 14 14 14 1 . 1 . Ballistic Cannon 5 | . 10 2 14 14 1 1 3 . Peak Build Rating 70 | 6 10 14 17 19 31 59 61 70 Average Rating 31 | 4 8 12 15 18 25 43 45 59 On Entrance 23 | . 6 10 14 17 19 29 58 54 Naked Turns . | . . . . . . . . . Heaviest Build 105 | 13 23 27 25 32 43 103 105 70 Greatest Support 132 | 40 40 40 40 40 60 132 132 110 Greatest Overweight (x) 11 | . . . . . 1 4 11 . Average Overweight (x) . | . . . . . . 2 . . Largest Inventory Capacity 25 | 8 10 10 10 10 15 25 25 5 Average Capacity 15 | 7 9 10 10 10 14 24 16 5 Most Carried 25 | 2 10 10 10 10 15 25 25 5 Average Carried 13 | . 6 9 9 9 13 22 14 4 Final Capacity 25 | 8 10 10 10 10 15 25 5 5 Final Carried 25 | 2 10 10 10 10 15 25 3 5 Class Distribution -------------------- 83% | Mutant 9% | Hacker-Mutant 5% | Scavenger-Mutant Dominant Class ---------------- Mutant | -10/Materials Mutant | -10/Mines Mutant | -10/Exiles Mutant | -9/Mines Mutant | -8/Materials Mutant | -7/Factory Mutant | -7/Waste Scavenger-Mutant | -7/Factory Resources | -11 -10 -10 -10 -9 -8 -7 -7 -7 ----------- Run | Yrd Mat Min Exi Min Mat Fac Was Fac Matter Collected 1284 | 211 287 42 . 30 105 218 237 154 Remotely . | . . . . . . . . . Salvage Created 2320 | . 391 103 . 7 331 468 799 221 Parts 104 | . 22 6 . 2 22 23 13 16 Haulers Intercepted 2 | . 2 . . . . . . . Recyclers Shooed . | . . . . . . . . . Parts Field Recycled . | . . . . . . . . . Retrieved Matter . | . . . . . . . . . Parts Self-Destructed . | . . . . . . . . . Prevented . | . . . . . . . . . Kills | -11 -10 -10 -10 -9 -8 -7 -7 -7 ------- Run | Yrd Mat Min Exi Min Mat Fac Was Fac Combat Hostiles Destroyed 35 | . 11 3 . 1 6 8 3 3 Guns 18 | . 3 . . . 6 4 3 2 Cannons 14 | . 7 3 . 1 . 3 . . Classes Destroyed 11 | . 5 1 . . 1 2 1 1 Builder 1 | . 1 . . . . . . . Hauler 2 | . 2 . . . . . . . Operator 2 | . . . . . . 1 . 1 Watcher 2 | . 1 . . . . 1 . . Swarmer 7 | . 6 . . 1 . . . . Grunt 14 | . 5 2 . . 3 4 . . Brawler 1 | . . . . . . . . 1 Sentry 6 | . . . . . 3 1 . 2 Programmer 3 | . . . . . . 3 . . Compactor 3 | . . . . . . . 3 . Assembled 1 | . . 1 . . . . . . Best Kill Streak 6 | . 6 2 . 1 5 3 2 1 Combat Bots Only 5 | . 5 2 . 1 5 3 2 1 Max Kills in Single Turn 1 | . 1 1 . 1 1 1 1 1 Gunslinging . | . . . . . . . . . Exploded . | . . . . . . . . . Melee . | . . . . . . . . . Uniques/NPCs Destroyed . | . . . . . . . . . Combat | -11 -10 -10 -10 -9 -8 -7 -7 -7 -------- Run | Yrd Mat Min Exi Min Mat Fac Was Fac Hostile Shots Fired 451 | . 75 17 . 1 28 115 26 189 Missed 134 | . 24 6 . . 11 46 . 47 Damage Taken 5161 | . 525 142 . 15 268 793 1748 1670 Core 862 | . 99 27 . . 84 105 247 300 Absorbed by Shields . | . . . . . . . . . Regen/Repaired (Parts) 261 | . 250 . . . . 11 . . Core Remaining (%) 77 | 100 . . . 49 84 . . . Volleys Fired 117 | . 29 8 . 4 18 45 2 11 Largest 2 | . 2 2 . 2 2 2 1 2 Hottest 141 | . 103 103 . 112 126 120 120 141 Shots Fired 310 | . 56 11 . 8 35 85 75 40 Gun 231 | . 16 . . . 35 68 72 40 Cannon 79 | . 40 11 . 8 . 17 3 . Launcher . | . . . . . . . . . Special . | . . . . . . . . . Kinetic 47 | . 27 3 . 4 . 12 1 . Thermal 213 | . 29 8 . 4 23 35 74 40 Explosive . | . . . . . . . . . Electromagnetic 50 | . . . . . 12 38 . . Robot Hit Streak 30 | . 11 2 . 3 11 6 30 8 Robot Miss Streak 4 | . 4 1 . 3 4 3 1 4 Penetration Max . | . . . . . . . . . Secondary Targets 3 | . 1 . . . 1 1 . . Max Gunslinging Chain 1 | . 1 . . . 1 1 . . Autonomous 92 | . . . . . . . 72 20 Shots Hit Robots 223 | . 30 7 . 3 26 62 69 26 Core Hits 75 | . 16 4 . 1 13 24 9 8 Critical Kills 1 | . 1 . . . . . . . Critical Parts Destroyed . | . . . . . . . . . Critical Strikes 4 | . 3 . . . . . . 1 Burn 1 | . . . . . . . . 1 Meltdown 1 | . 1 . . . . . . . Blast 2 | . 2 . . . . . . . Melee Attacks 11 | . . . . . . 6 5 . Impact 11 | . . . . . . 6 5 . Slashing . | . . . . . . . . . Piercing . | . . . . . . . . . Sneak Attacks . | . . . . . . . . . Combat Hostiles . | . . . . . . . . . Follow-up Attacks . | . . . . . . . . . Damage Inflicted 5175 | . 557 138 . 67 489 1198 2070 656 Guns 4157 | . 66 . . . 489 876 2070 656 Cannons 926 | . 484 138 . 67 . 237 . . Explosions 85 | . . . . . . 85 . . Melee . | . . . . . . . . . Ramming 7 | . 7 . . . . . . . Kinetic 498 | . 232 15 . 47 . 204 . . Thermal 3956 | . 318 123 . 20 270 499 2070 656 Explosive . | . . . . . . . . . Electromagnetic 714 | . . . . . 219 495 . . Impact . | . . . . . . . . . Slashing . | . . . . . . . . . Piercing . | . . . . . . . . . Highest Corruption 22 | . . . . . . 3 22 22 Average Corruption 8 | . . . . . . 1 14 19 Corruption Purged 5 | . . . . . . . . 5 Corruption Blocked . | . . . . . . . . . Effects 55 | . . . . . . 13 17 25 Message Errors 14 | . . . . . . 6 1 7 Matter Fused 9 | . . . . . . 4 2 3 Heat Flow Errors 8 | . . . . . . 1 2 5 Energy Discharges 5 | . . . . . . 1 1 3 Parts Fused 1 | . . . . . . . 1 . Data Loss (minor) 7 | . . . . . . 1 3 3 Data Loss (major) 1 | . . . . . . . 1 . Misfires 1 | . . . . . . . 1 . Alerts 3 | . . . . . . . 2 1 Misdirections 4 | . . . . . . . 3 1 Weapon Failures 2 | . . . . . . . . 2 Overload Shots . | . . . . . . . . . Overflow Damage . | . . . . . . . . . Projectiles . | . . . . . . . . . Explosions . | . . . . . . . . . Melee . | . . . . . . . . . Knockbacks 5 | . 3 . . . . 2 . . Impact . | . . . . . . . . . Kinetic 5 | . 3 . . . . 2 . . Secondary . | . . . . . . . . . Self-Inflicted Damage 55 | . . . . . . 55 . . Shots 1 | . . . . . . 1 . . Rammed . | . . . . . . . . . Targets Rammed 1 | . 1 . . . . . . . Kicked . | . . . . . . . . . Crushed 1 | . 1 . . . . . . . Highest Temperature 721 | . 453 188 . 288 320 296 272 721 Average Temperature 176 | . 162 88 . 146 158 124 120 278 Received Heat Transfer 1176 | . 162 78 . . 126 174 . 636 Effects 30 | . 6 . . . 3 . . 21 Shutdowns 4 | . 1 . . . . . . 3 Energy Bleed 3 | . . . . . 1 . . 2 Interference 5 | . 1 . . . 2 . . 2 Matter Decay 5 | . 1 . . . . . . 4 Short Circuit 2 | . . . . . . . . 2 Damage (minor) 2 | . . . . . . . . 2 Damage (major) 7 | . 3 . . . . . . 4 Damage (core) 2 | . . . . . . . . 2 Siege Activations . | . . . . . . . . . Robots Corrupted 1 | . . . . . . 1 . . Combat Hostiles 1 | . . . . . . 1 . . Parts Fried . | . . . . . . . . . Impact Corruptions . | . . . . . . . . . Robots Melted 2 | . 1 . . . . . . 1 Combat Hostiles 2 | . 1 . . . . . . 1 Parts Melted 9 | . 1 . . . 1 3 . 4 Heat Transferred 5959 | . 629 222 . 37 592 877 2553 1049 Parts Sabotaged . | . . . . . . . . . Parts Stolen . | . . . . . . . . . Parts Stripped . | . . . . . . . . . Power Chain Reactions 1 | . . . . . . 1 . . Alert | -11 -10 -10 -10 -9 -8 -7 -7 -7 ------- Run | Yrd Mat Min Exi Min Mat Fac Was Fac Peak Influence 278 | . 278 50 . 74 155 110 33 136 Initial 33 | . . 4 . . . 9 33 . Average 42 | . 111 47 . 32 24 24 3 48 Maximum Alert Level 1 | . 1 . . . . . . . Low Security (%) 99 | 100 95 100 . 100 100 100 100 100 Level 1 . | . 4 . . . . . . . Level 2 . | . . . . . . . . . Level 3 . | . . . . . . . . . Level 4 . | . . . . . . . . . Level 5 . | . . . . . . . . . High Security . | . . . . . . . . . Max Security . | . . . . . . . . . Squads Dispatched 7 | . 1 1 . . 1 4 . . Investigation 1 | . . 1 . . . . . . Extermination 3 | . . . . . . 3 . . Reinforcement 3 | . 1 . . . 1 1 . . Assault . | . . . . . . . . . Garrison . | . . . . . . . . . Intercept . | . . . . . . . . . Searches Triggered . | . . . . . . . . . Construction Impeded . | . . . . . . . . . Haulers Reinforced . | . . . . . . . . . Active Scanning Responses . | . . . . . . . . . Cargo Convoy Interrupts . | . . . . . . . . . Stealth | -11 -10 -10 -10 -9 -8 -7 -7 -7 --------- Run | Yrd Mat Min Exi Min Mat Fac Was Fac Distress Signals 3 | . 1 . . . 2 . . . Communications Jammed . | . . . . . . . . . Distress Signals . | . . . . . . . . . Times Spotted 68 | . 22 4 . 3 8 14 9 8 Peak Tracking Total 7 | . 6 2 . 3 7 4 5 5 Tactical Retreats 4 | . 2 . . . . . 2 . Traps | -11 -10 -10 -10 -9 -8 -7 -7 -7 ------- Run | Yrd Mat Min Exi Min Mat Fac Was Fac Traps Triggered 5 | . . . . . . 5 . . Indirectly . | . . . . . . . . . Trap Hack Attempts . | . . . . . . . . . Triggered . | . . . . . . . . . Disarmed . | . . . . . . . . . Reprogrammed . | . . . . . . . . . Reused . | . . . . . . . . . Traps Extracted . | . . . . . . . . . Installed . | . . . . . . . . . Triggered . | . . . . . . . . . Machines | -11 -10 -10 -10 -9 -8 -7 -7 -7 ---------- Run | Yrd Mat Min Exi Min Mat Fac Was Fac Machines Disabled 3 | . 2 1 . . . . . . Max in Single Turn 1 | . 1 1 . . . . . . Garrison Access 1 | . . . . . . . . 1 Machines Repaired . | . . . . . . . . . Machines Dismantled . | . . . . . . . . . Machines Sabotaged . | . . . . . . . . . Overloaded Fab Kills . | . . . . . . . . . Hacking | -11 -10 -10 -10 -9 -8 -7 -7 -7 --------- Run | Yrd Mat Min Exi Min Mat Fac Was Fac Machines Accessed 26 | . 6 1 1 . 4 10 . 4 Terminals 15 | . 5 . . . 3 5 . 2 Fabricators 4 | . . . . . . 3 . 1 Repair Stations 2 | . 1 . . . . 1 . . Recycling Units 1 | . . . . . . 1 . . Scanalyzers 1 | . . . . . 1 . . . Garrison Access 1 | . . . . . . . . 1 Total Hacks 61 | . 16 1 1 . 10 23 . 10 Successful 36 | . 8 1 1 . 7 15 . 4 Failed 25 | . 8 . . . 3 8 . 6 Catastrophic 4 | . 2 . . . . 1 . 1 Database Lockouts . | . . . . . . . . . Manual 31 | . 11 . 1 . 8 9 . 2 Terminals 37 | . 12 . . . 8 13 . 4 Fabricators 8 | . . . . . . 6 . 2 Repair Stations 7 | . 4 . . . . 3 . . Recycling Units 1 | . . . . . . 1 . . Scanalyzers 2 | . . . . . 2 . . . Garrison Access 4 | . . . . . . . . 4 Terminal Hacks 10 | . 1 1 1 . 3 3 . 1 Record 1 | . . . . . . 1 . . Robot Analysis 3 | . 1 . . . 1 1 . . Open Door 1 | . . 1 . . . . . . Open DSF 1 | . . . . . . . . 1 Branch Access Points 1 | . . . . . 1 . . . Emergency Access Points 1 | . . . . . . 1 . . Terminal Index 1 | . . . . . 1 . . . Derelict Proto ID Bank 1 | . . . 1 . . . . . Fabricator Hacks 6 | . . . . . . 5 . 1 Network Status 2 | . . . . . . 1 . 1 Load Schematic 3 | . . . . . . 3 . . Build 1 | . . . . . . 1 . . Repair Station Hacks 6 | . 4 . . . . 2 . . Scan Component 3 | . 2 . . . . 1 . . Repair 3 | . 2 . . . . 1 . . Recycling Unit Hacks . | . . . . . . . . . Scanalyzer 2 | . . . . . 2 . . . Insert Component 1 | . . . . . 1 . . . Analyze 1 | . . . . . 1 . . . Garrison Access Hacks 1 | . . . . . . . . 1 Seal Access 1 | . . . . . . . . 1 Unauthorized Hacks 11 | . 3 . . . 2 5 . 1 Terminals 10 | . 3 . . . 2 4 . 1 Botnet 10 | . 3 . . . 2 4 . 1 Fabricators 1 | . . . . . . 1 . . Fabnet 1 | . . . . . . 1 . . Repair Stations . | . . . . . . . . . Recycling Units . | . . . . . . . . . Scanalyzers . | . . . . . . . . . Garrison Access . | . . . . . . . . . Data Cores Recovered 1 | . . . . . . . . 1 Used . | . . . . . . . . . Hacking Detections 18 | . 6 . . . 3 7 . 2 Full Trace Events . | . . . . . . . . . Feedback Events . | . . . . . . . . . Feedback Blocked . | . . . . . . . . . Robot Schematics Acquired . | . . . . . . . . . Robots Built . | . . . . . . . . . Authchips . | . . . . . . . . . Time . | . . . . . . . . . Total Robot Build Rating . | . . . . . . . . . Part Schematics Acquired 1 | . . . . . 1 . . . Parts Built 1 | . . . . . . 1 . . Authchips 1 | . . . . . . 1 . . Time 204 | . . . . . . 204 . . Total Part Build Rating 8 | . . . . . . 8 . . Parts Repaired 3 | . 2 . . . . 1 . . Time 145 | . 77 . . . . 68 . . Parts Recycled . | . . . . . . . . . Recycled Matter . | . . . . . . . . . Retrieved Matter . | . . . . . . . . . Retrieved Components . | . . . . . . . . . Parts Scanalyzed 1 | . . . . . 1 . . . Part Schematics Acquired 1 | . . . . . 1 . . . Parts Damaged 1 | . . . . . 1 . . . Bothacking | -11 -10 -10 -10 -9 -8 -7 -7 -7 ------------ Run | Yrd Mat Min Exi Min Mat Fac Was Fac Used RIF Installer . | . . . . . . . . . Robots Hacked . | . . . . . . . . . Non-combat . | . . . . . . . . . Combat . | . . . . . . . . . Robot Hacks Applied . | . . . . . . . . . Relay Couplers Released . | . . . . . . . . . Fabnet Peak Effective % . | . . . . . . . . . Robots Rewired . | . . . . . . . . . Allies Hacked . | . . . . . . . . . Hacks Repelled . | . . . . . . . . . Allies | -11 -10 -10 -10 -9 -8 -7 -7 -7 -------- Run | Yrd Mat Min Exi Min Mat Fac Was Fac Total Allies 2 | . . . . 1 . . 1 . Largest Group 1 | . . . . 1 . . 1 . Highest-Rated Group 31 | . . . . 31 . . 31 . Highest-Rated Ally 31 | . . . . 31 . . 31 . Total Orders . | . . . . . . . . . Ally Attacks 16 | . . . . 7 . . 9 . Total Damage 243 | . . . . 81 . . 162 . Kills 2 | . . . . 2 . . . . Allies Corrupted . | . . . . . . . . . Allies Melted . | . . . . . . . . . Intel | -11 -10 -10 -10 -9 -8 -7 -7 -7 ------- Run | Yrd Mat Min Exi Min Mat Fac Was Fac Robot Analysis Total 3 | . 1 . . . 1 1 . . Derelict Logs Recovered 1 | . . . . 1 . . . . Drone Launches . | . . . . . . . . . Drone Recoveries . | . . . . . . . . . Exploration | -11 -10 -10 -10 -9 -8 -7 -7 -7 ------------- Run | Yrd Mat Min Exi Min Mat Fac Was Fac Turns Passed 5451 | 74 859 372 415 432 439 1880 381 599 Spaces Moved 2769 | 43 418 211 255 261 217 912 119 333 Core 10 | 4 . . . . . . 6 . Treads 2033 | 39 418 211 255 261 217 186 113 333 Legs . | . . . . . . . . . Wheels 726 | . . . . . . 726 . . Hover . | . . . . . . . . . Flight . | . . . . . . . . . Fastest Speed 50 | 50 160 160 160 160 160 120 160 160 Average Speed 160 | 149 160 160 160 160 163 156 193 160 Slowest Speed 600 | 160 160 160 160 160 240 240 600 160 Overloaded Moves . | . . . . . . . . . Propulsion Burnouts . | . . . . . . . . . Robots Hopped . | . . . . . . . . . Cave-ins Triggered 2 | . . . . . . . 2 . Exploration Rate (%) 43 | 5 77 45 59 67 25 27 74 11 Regions Visited 8 Branch Regions 3 Pre-discovered Areas 1 | . . 1 . . . . . . Known Exits Taken 1 | . 1 . . . . . . . Unknown Exits Taken 5 | 1 . 1 1 1 1 . . . Scrap Searched 2 | . . 1 . 1 . . . . Spaces Dug 16 | . . . . . . 9 7 . Terrain Destroyed 34 | . . 1 . . . 19 9 5 Melee 11 | . . . . . . 6 5 . Projectile 17 | . . 1 . . . 7 4 5 AOE 6 | . . . . . . 6 . . Terrain Rammed . | . . . . . . . . . Walls Destroyed . | . . . . . . . . . Machines Disabled . | . . . . . . . . . Actions | -11 -10 -10 -10 -9 -8 -7 -7 -7 --------- Run | Yrd Mat Min Exi Min Mat Fac Was Fac Total 3535 | 50 551 235 265 268 268 1266 258 374 Wait 406 | . 79 7 . 1 1 203 114 1 Move 2761 | 42 417 210 254 260 216 912 117 333 Hop . | . . . . . . . . . Pick Up 69 | 2 11 3 5 1 10 26 3 8 Fast Attach 42 | 6 6 2 . . 6 10 1 11 Attach 19 | . 1 1 . 1 2 2 10 2 Detach 5 | . . . . . 3 . 2 . Swap 25 | . 3 1 . . 4 14 2 1 Drop 52 | . 4 3 6 1 8 22 1 7 Fire 117 | . 29 8 . 4 18 45 2 11 Melee 11 | . . . . . . 6 5 . Ram . | . . . . . . . . . Kick . | . . . . . . . . . Crush 1 | . 1 . . . . . . . Escape Stasis 27 | . . . . . . 26 1 . Rewire . | . . . . . . . . . Trap . | . . . . . . . . . Miscellaneous . | . . . . . . . . . Route ------- -11/Scrapyard -10/Materials (discovered 3 exits: *Mat x2 / *Min) -10/Mines -10/Exiles -9/Mines -8/Materials -7/Factory (discovered 2 exits: *Fac / *Low) -7/Waste -7/Factory (discovered 1 exit: *Fac) History --------- Turn | Location | Event 11 | -11/Scrapyard | Discovered new exit (range 16) 75 | -11/Scrapyard | Entered Materials 303 | -10/Materials | Build established: Mutant 477 | -10/Materials | Discovered new exit (range 15) 654 | -10/Materials | Discovered new exit (range 11) 674 | -10/Materials | Identified exit to Materials 823 | -10/Materials | Repaired Lgt. Treads 875 | -10/Materials | Repaired Adv. Beam Cannon 903 | -10/Materials | Discovered new exit (range 16) 925 | -10/Materials | Identified exit to Mines 934 | -10/Materials | Entered Mines 957 | -10/Mines | Core integrity fell below 50% 995 | -10/Mines | Met a Derelict shopkeep closing up shop 1088 | -10/Mines | Learned location of Storage (-9) 1150 | -10/Mines | Assembled infested the area 1155 | -10/Mines | Assisted by a Guerilla fighting off Assembled 1300 | -10/Mines | Deemed a non-threat by the Exiles lab entrance 1300 | -10/Mines | Discovered new exit (range 5) 1306 | -10/Mines | Entered Exiles 1346 | -10/Exiles | Met 8R-AWN 1372 | -10/Exiles | Met EX-HEX 1415 | -10/Exiles | Met EX-BIN 1449 | -10/Exiles | Aligned with FarCom system 1450 | -10/Exiles | Given EX-Vault access code 1487 | -10/Exiles | Opened EX-Vault 1497 | -10/Exiles | Found Gui. Plasma Cannon 1552 | -10/Exiles | Found Skeleton Box 1558 | -10/Exiles | Found AWS/Thermal 1594 | -10/Exiles | Warned to stay clear of 0b10 Research branches 1638 | -10/Exiles | Met EX-DEC 1705 | -10/Exiles | Discovered new exit (range 12) 1721 | -10/Exiles | Stole three prototypes: Skeleton Box, AWS/Thermal, Gui. Plasma Cannon 1721 | -10/Exiles | Entered Mines 1724 | -9/Mines | Received a Mining Laser from a helpful Derelict 1763 | -9/Mines | Found a damaged Exp. Sensor Array with a note attached 1768 | -9/Mines | Found Prototype Device 2118 | -9/Mines | Discovered new exit (range 7) 2142 | -9/Mines | Learned Materials security intel 2153 | -9/Mines | Entered Materials 2153 | -8/Materials | Evolved 4 slots: Propulsion x2, Utility x2 2329 | -8/Materials | Identified Exp. Sensor Array 2576 | -8/Materials | Discovered new exit (range 9) 2592 | -8/Materials | Entered Factory 2592 | -7/Factory | Evolved 2 slots: Propulsion x1, Utility x1 2594 | -7/Factory | FarCom data flow suspended 3404 | -7/Factory | Discovered new exit (range 6) 3671 | -7/Factory | Build established: Hacker-Mutant 3776 | -7/Factory | Fabricated Exp. Sensor Array (x1) 3889 | -7/Factory | Identified exit to Lower Caves 4051 | -7/Factory | Discovered new exit (range 5) 4056 | -7/Factory | Identified exit to Factory 4191 | -7/Factory | Build established: Mutant 4468 | -7/Factory | Repaired Broken Exp. Sensor Array 4472 | -7/Factory | Sucked down chute 4472 | -7/Factory | Entered Waste 4473 | -7/Waste | Met a frightened Derelict 4484 | -7/Waste | Spotted C-40 Crusher 4498 | -7/Waste | Spotted C-40 Crusher 4502 | -7/Waste | Spotted C-40 Crusher 4517 | -7/Waste | Crushed by Compactor (1 part destroyed, 1 dropped) 4523 | -7/Waste | Crushed by Compactor (1 part destroyed, 1 dropped) 4615 | -7/Waste | Crushed by falling debris 4616 | -7/Waste | System corruption reached 10% 4646 | -7/Waste | Lost 3 parts (1p2u) 4649 | -7/Waste | Crushed by falling debris 4673 | -7/Waste | Spotted C-40 Crusher 4679 | -7/Waste | Spotted C-40 Crusher 4690 | -7/Waste | Crushed by Compactor (1 part destroyed, 1 dropped) 4698 | -7/Waste | Crushed by Compactor (1 part destroyed) 4705 | -7/Waste | Destroyed C-40 Crusher 4713 | -7/Waste | Destroyed C-40 Crusher 4719 | -7/Waste | Crushed by Compactor (0 parts destroyed, 1 dropped) 4738 | -7/Waste | Core integrity fell below 50% 4743 | -7/Waste | Crushed by Compactor (0 parts destroyed, 2 dropped) 4750 | -7/Waste | Destroyed C-40 Crusher 4765 | -7/Waste | Found Damper Plating 4776 | -7/Waste | Spotted C-40 Crusher 4826 | -7/Waste | Discovered new exit (range 16) 4853 | -7/Waste | Entered Factory 4902 | -7/Factory | Identified exit to DSF 5190 | -7/Factory | Discovered exit to Factory (range 8) 5429 | -7/Factory | Core integrity fell below 20% 5452 | -7/Factory | Self-destructed Last Messages --------------- damaged (-62). 05440_ Overheating: Imp. Light Armor Plating damaged (-54). 05441_ Overheating: Matter decay (-49). 05443_ Overheating: Matter decay (-31). 05443_ R-06 Scavenger collects Lgt. Treads. 05443_ Lgt. Treads destroyed. 05443_ K-01 Serf collects debris. 05444_ PIALF:NAT8VL::F97Y1LU1CI 05444_ Lgt. Treads destroyed. 05445_ Overheating: Imp. Light Armor Plating damaged (-19). 05446_ Imp. Medium Armor Plating destroyed. 05447_ Power failure, Antimatter Reactor shutdown. 05447_ Overheating: Energy bleed (-43). 05448_ K-01 Serf collects debris. 05448_ Gatling Laser destroyed. 05448_ Imp. Light Armor Plating destroyed. 05452_ Overheating: Matter decay (-37). Map ----- +----------------------------------------------------+ | #??????????# ## #?????????????????????????? | | ##??????????# ## #######???????????????????? | | #???????????# ## ????????????????????? | | #?###########+## ???? ??+???????????? | | #?# ! # ?? #???????????? | | #?# """ """ # """"? #???????????? | | ### """ """ # """" ##??????????? | | # """ """ # ! """" ??????????? | | # # """" #?????????? | | # """ """ # """" ?????????? | | # """ """ + "" "" """" ????????? | | + """ """ # "F "" ????????? | | # # """"" ????????? | | # # ????????? | | ### # ! """ ""?????????? | | + # %######## """????????????? | | # ############## #?????????""?????????????? | | # ###### #????????????????????????? | | # ######???????????????????? | | # # #???????????????????? | | # # #???????????????????? | | # # #???????????????????? | | # # #???????????????????? | | ### # #???????????????????? | | ###+#+## # #???????????????????? | | # #@ #???????????????????? | | " """" # + #???????????????????? | | " """" # ########## #???????????????????? | | " """" + ###############???????????????????? | | " """" # ????????????????????????? | | " """" # ?????????????????????????? | | ? """" # #######???????????????????????????? | | ? # #?????????????????????????????????? | | ###########+#######??????????????????????????????? | | "" ## !#??????????????????????????????? | | "" !## #??????????????????????????????? | | ## #??????????????????????????????? | | ## #??????????????????????????????? | | ??# """ #??????????????????????????????? | | ????# """ ""#??????????????????????????????? | | #????# """ ""#??????????????????????????????? | | ###### S"#??????????????????????????????? | | + """ """#??????????????????????????????? | | ###### """ """#??????????????????????????????? | | #????# """ """#??????????????????????????????? | | ?????# #??????????????????????????????? | | ?????##############??????????????????????????????? | | ?????????????????????????????????????????????????? | | ?????????????????????????????????????????????????? | | ???############??????????????????????????????????? | +----------------------------------------------------+ Best States ------------- Heat Dissipation 61 Energy Generation 21 Energy Capacity 800 Matter Stores 300 Matter Capacity 300 Sight Range 16 Robot Scan Range 20 Terrain Scan Range 14 Terrain Scan Density 10 Base Temperature (-) 100 Armor Coverage 1600 Resistance: TH 10 Resistance: EM 90 Evasion (%) 40 Recoil Reduction 5 Particle Charging 15 Offensive Hacking 10 Defensive Hacking 10 Authchip Count 1 Item Schematics ----------------- Exp. Sensor Array | -8/Materials | Scanalyzed Robot Schematics ------------------ None Fabricated ------------ Exp. Sensor Array | x1 | -7/Factory | Authchip Alien Tech Used ----------------- None Achievements -------------- None Challenges ------------ None Game ------ Seed RemoteChromaticMapper Manual? 0 Play Time 01:13:17 Cumulative 181.0 hours Start 2025.04.25 @ 18:41:08 End 2025.04.26 @ 12:49:01 Sessions 3 Manual Loads 0 Difficulty Rogue Special Mode None Game No. 176 Rogue 176 Adventurer 0 Explorer 0 Win Type - Total 1 Types 1/0/0/0/0/0/0/0/0 Lore% 66 Gallery% 59 Achievement% 47 Wizard Run 0 Options --------- Layout 1 ASCII 0 Keyboard 0 Movement Mouse Keybinds 0 Fullscreen 1 Font 24/Smallcaps Map View 50x35 Zoom Use 0% Tactical HUD 1 Map Filters NONE Filters NONE Steam 1 RUN: 51c698a0-df8d-418c-8eb9-566a3ae7ee93